fUST/lending_fUST_20250614
["ID","MTS","AMOUNT","RATE_DAILY","PERIOD"]
[365739769,1749862244487,-172.019868,0.00023723,7]
[365739770,1749862244496,-151.0,0.00023723,7]
[365739771,1749862244506,-151.0,0.00023723,7]
[365739772,1749862244516,-151.0,0.00023723,7]
[365739773,1749862244525,-151.736753,0.00023723,7]
[365739774,1749862244535,-153.067976,0.00023723,7]
[365739775,1749862244545,-774.252274,0.00023723,7]
[365739776,1749862244554,-153.067976,0.00023723,7]
[365739777,1749862244564,-774.252274,0.00023723,7]
[365739778,1749862244574,-151.0,0.00023723,7]
[365739779,1749862244583,-151.0,0.00023723,7]
[365739780,1749862244592,-151.0,0.00023723,7]
[365739781,1749862244602,-460.0,0.00023723,4]
[365739782,1749862244612,-271.490356,0.00023723,7]
[365739783,1749862244621,-271.490356,0.00023723,7]
[365739784,1749862244630,-151.0,0.00023723,7]
[365739785,1749862244639,-196.9,0.00023723,4]
[365739786,1749862244649,-4326.805281,0.00023723,2]
[365739787,1749862244658,-4326.805281,0.00023723,2]
[365739788,1749862244667,-151.0,0.00023723,7]
[365739789,1749862244676,-151.0,0.00023723,7]
[365739790,1749862244685,-151.0,0.00023723,7]
[365739791,1749862244694,-460.0,0.00023723,4]
[365739792,1749862244704,-394.616137,0.00023723,7]
[365739793,1749862244714,-394.616137,0.00023723,7]
[365739794,1749862244723,-151.0,0.00023723,7]
[365739795,1749862244732,-151.0,0.00023723,7]
[365739796,1749862244742,-2218.7505955,0.00023762,9]
[365739797,1749862244751,-513.9116651,0.00023773,2]
[365739798,1749862244760,-500.48958838,0.00023773,2]
[365739799,1749862244770,-500.0,0.00023773,2]
[365739800,1749862244779,-500.0,0.00023773,2]
[365739801,1749862244788,-500.0,0.00023773,2]
[365739802,1749862244797,-500.0,0.00023773,2]
[365739803,1749862244806,-500.0,0.00023773,2]
[365739804,1749862244815,-500.0,0.00023773,2]
[365739805,1749862244825,-500.0,0.00023773,2]
[365739806,1749862244834,-151.0,0.00023773,7]
[365739807,1749862244843,-151.0,0.00023773,7]
[365739808,1749862244853,-151.0,0.00023773,7]
[365739809,1749862244864,-500.42355388,0.00023779,2]
[365739810,1749862244873,-500.0,0.00023779,2]
[365739811,1749862244882,-500.0,0.00023779,2]
[365739812,1749862244890,-500.0,0.00023779,2]
[365739813,1749862244900,-500.0,0.00023779,2]
[365739814,1749862244909,-500.0,0.00023779,2]
[365739815,1749862244918,-600.0,0.00023779,2]
[365739816,1749862244927,-500.0,0.00023779,2]
[365739817,1749862244936,-500.0,0.00023779,2]
[365739818,1749862244945,-500.0,0.00023779,2]
[365739819,1749862244955,-500.0,0.00023779,2]
[365739820,1749862244964,-512.72178487,0.00023779,2]
[365739821,1749862244973,-500.0,0.00023779,2]
[365739822,1749862244982,-504.28907664,0.00023779,2]
[365739823,1749862244991,-479559.26292279,0.0002378,5]
[365739824,1749862245000,-151.0,0.0002378,7]
[365739825,1749862245010,-151.0,0.0002378,7]
[365739826,1749862245019,-152.650201,0.0002378,7]
[365739827,1749862245027,-151.0,0.0002378,7]
[365739828,1749862245037,-159.45211,0.0002378,7]
[365739829,1749862245046,-260.664873,0.0002378,7]
[365739830,1749862245055,-260.664873,0.0002378,7]
[365739831,1749862245064,-151.0,0.0002378,7]
[365739832,1749862245073,-151.0,0.0002378,7]
[365739833,1749862245082,-151.0,0.0002378,7]
[365739834,1749862245092,-151.0,0.0002378,7]
[365739835,1749862245101,-172.019868,0.0002378,7]
[365739836,1749862245111,-172.019868,0.0002378,7]
[365739837,1749862245120,-151.0,0.0002378,7]
[365739838,1749862245129,-151.0,0.0002378,7]
[365739839,1749862245139,-151.0,0.0002378,7]
[365739840,1749862245148,-151.0,0.0002378,7]
[365739841,1749862245157,-151.0,0.0002378,7]
[365739842,1749862245166,-151.0,0.0002378,7]
[365739843,1749862245175,-151.0,0.0002378,7]
[365739844,1749862245184,-151.0,0.0002378,7]
[365739845,1749862245193,-153.067976,0.0002378,7]
[365739846,1749862245203,-774.252274,0.0002378,7]
[365739847,1749862245213,-153.067976,0.0002378,7]
[365739848,1749862245222,-774.252274,0.0002378,7]
[365739849,1749862245231,-159.755118,0.0002378,7]
[365739850,1749862245240,-159.755118,0.0002378,7]
[365739851,1749862245250,-230.794975,0.0002378,7]
[365739852,1749862245259,-151.0,0.0002378,7]
[365739853,1749862245268,-151.0,0.0002378,7]
[365739854,1749862245278,-271.490356,0.0002378,7]
[365739855,1749862245287,-271.490356,0.0002378,7]
[365739856,1749862245296,-151.0,0.0002378,7]
[365739857,1749862245306,-4326.805281,0.0002378,2]
[365739858,1749862245314,-4326.805281,0.0002378,2]
[365739859,1749862245323,-151.0,0.0002378,7]
[365739860,1749862245332,-151.0,0.0002378,7]
[365739861,1749862245342,-151.0,0.0002378,7]
[365739862,1749862245351,-151.0,0.0002378,7]
[365739863,1749862245361,-151.0,0.0002378,7]
[365739864,1749862245371,-394.616137,0.0002378,7]
[365739865,1749862245380,-394.616137,0.0002378,7]
[365739866,1749862245389,-139.65645686,0.0002378,7]
[365739868,1749862328886,-184.09,0.00021041,2]
[365739869,1749862335651,-226.35468164,0.00021803,4]
[365739870,1749862351227,200.0,0.00024165,120]
[365739890,1749862591516,200.0,0.00024348,120]
[365739893,1749862651079,200.0,0.00024066,120]
[365739897,1749862711096,200.0,0.00024113,120]
[365739902,1749862820006,-226.35468164,0.00021802,4]
[365739903,1749862825994,-233.64531836,0.00021802,4]
[365739904,1749862826018,-97.45226253,0.00021802,4]
[365739905,1749862828061,-202.54773747,0.00021802,4]
[365739906,1749862828087,-128.54984342,0.00021802,4]
[365739907,1749862830642,-293.72853395,0.00021802,4]
[365739908,1749862831335,200.0,0.00024534,120]
[365739909,1749862839306,1000.0,0.00024945,120]
[365739910,1749862840458,-226.35468164,0.0002083,2]
[365739912,1749862846389,-37.72162263,0.00021802,4]
[365739913,1749862846412,-121.8941091,0.00021802,4]
[365739914,1749862847096,1000.0,0.00024945,120]
[365739915,1749862849594,-247.45697488,0.00021802,4]
[365739916,1749862857915,1000.0,0.00024945,120]
[365739918,1749862867231,501.0,0.00024945,120]
[365739920,1749862951498,200.0,0.0002429,120]
[365739921,1749863011931,200.0,0.00023835,120]
[365739922,1749863132543,200.0,0.00024389,120]
[365739923,1749863191287,200.0,0.0002461,120]
[365739924,1749863234117,-2100.39345914,0.00020368,2]
[365739925,1749863235086,-2899.60654086,0.00020368,2]
[365739926,1749863235107,-194.23726496,0.00020682,2]
[365739927,1749863235129,-190.4257586,0.00020782,2]
[365739928,1749863235149,-1559.4160697,0.00021041,2]
[365739929,1749863235170,-172.838548,0.00021397,2]
[365739930,1749863235191,-512.36199152,0.0002168,2]
[365739931,1749863249112,-1668.69818473,0.00021463,2]
[365739932,1749863249133,-4.57232916,0.0002168,2]
[365739933,1749863249154,-300.0,0.00021762,2]
[365739934,1749863249176,-1200.0,0.00021763,2]
[365739935,1749863249197,-300.0,0.00021763,2]
[365739936,1749863249216,-300.0,0.00021764,2]
[365739937,1749863249237,-300.0,0.00021764,2]
[365739938,1749863249261,-300.0,0.00021764,2]
[365739939,1749863249282,-1668.70668857,0.00021764,2]
[365739940,1749863251066,200.0,0.00024023,120]
[365739941,1749863312148,200.0,0.00023857,120]
[365739942,1749863360229,-203.79197113,0.00020787,2]
[365740004,1749863432316,-196.9294306,0.00020779,2]
[365740006,1749863432326,-1010.45371317,0.00020787,2]
[365740008,1749863432336,-660.0,0.00021503,2]
[365740010,1749863432346,-2187.92962994,0.00021765,2]
[365740012,1749863432356,-2214.15358776,0.00021773,2]
[365740028,1749863432480,-330.59152564,0.00021773,2]
[365740030,1749863432489,-675.47,0.0002179,3]
[365740032,1749863432498,-568.0,0.0002179,3]
[365740034,1749863432507,-1200.0,0.00021791,2]
[365740036,1749863432516,-6990.5446264,0.00021793,2]
[365740038,1749863432525,-300.0,0.00021793,2]
[365740040,1749863432534,-300.0,0.00021793,2]
[365740042,1749863432543,-1419.17,0.00021794,3]
[365740044,1749863432552,-741.14,0.00021794,3]
[365740046,1749863432561,-405.61,0.00021794,3]
[365740048,1749863432571,-202.81,0.00021794,3]
[365740050,1749863432580,-206.54,0.00021794,3]
[365740052,1749863432589,-225.15,0.00021794,3]
[365740054,1749863432598,-460.0,0.00021799,4]
[365740056,1749863432607,-500.0,0.00021799,2]
[365740058,1749863432617,-500.0,0.00021799,2]
[365740060,1749863432626,-500.0,0.00021799,2]
[365740062,1749863432636,-500.0,0.00021799,2]
[365740064,1749863432645,-303.56197597,0.00021799,2]
[365740078,1749863432767,-500.0,0.00021799,2]
[365740080,1749863432776,-232.80626764,0.00021799,2]
[365740082,1749863432786,-500.0,0.00021799,2]
[365740084,1749863432795,-500.0,0.00021799,2]
[365740086,1749863432804,-500.0,0.00021799,2]
[365740088,1749863432813,-500.0,0.00021799,2]
[365740090,1749863432823,-500.0,0.00021799,2]
[365740092,1749863432832,-500.0,0.00021799,2]
[365740094,1749863432841,-430.0,0.000218,4]
[365740096,1749863432850,-460.0,0.000218,4]
[365740098,1749863432859,-460.0,0.000218,4]
[365740100,1749863432868,-460.0,0.000218,4]
[365740102,1749863432877,-460.0,0.000218,4]
[365740104,1749863432885,-430.0,0.000218,4]
[365740106,1749863432894,-430.0,0.000218,4]
[365740108,1749863432903,-440.0,0.000218,4]
[365740110,1749863432912,-4017.34,0.000218,4]
[365740112,1749863432921,-878.03,0.000218,4]
[365740114,1749863432930,-430.0,0.000218,4]
[365740116,1749863432940,-671.49,0.000218,4]
[365740118,1749863432949,-460.0,0.000218,4]
[365740120,1749863432958,-1138.48,0.000218,4]
[365740122,1749863432967,-460.0,0.000218,4]
[365740124,1749863432976,-460.0,0.000218,4]
[365740126,1749863432985,-460.0,0.000218,4]
[365740128,1749863432994,-460.0,0.000218,4]
[365740130,1749863433003,-696.59,0.000218,4]
[365740132,1749863433012,-1001.58,0.000218,4]
[365740134,1749863433021,-460.0,0.000218,4]
[365740136,1749863433030,-460.0,0.000218,4]
[365740138,1749863433039,-460.0,0.000218,4]
[365740140,1749863433048,-115926.34089,0.000218,2]
[365740142,1749863433058,-460.0,0.00021801,4]
[365740144,1749863433067,-460.0,0.00021801,4]
[365740146,1749863433077,-440.0,0.00021801,4]
[365740148,1749863433086,-460.0,0.00021801,4]
[365740150,1749863433095,-420.0,0.00021801,4]
[365740152,1749863433105,-460.0,0.00021801,4]
[365740154,1749863433114,-272.87737465,0.00021801,4]
[365740156,1749863433123,-500.0,0.00021801,4]
[365740158,1749863433133,-189.10814474,0.00021801,4]
[365740160,1749863433142,-460.0,0.00021801,4]
[365740162,1749863433151,-460.0,0.00021801,4]
[365740164,1749863433160,-460.0,0.00021801,4]
[365740165,1749863433170,-460.0,0.00021801,4]
[365740166,1749863433179,-440.0,0.00021801,4]
[365740167,1749863433189,-440.0,0.00021801,4]
[365740169,1749863433198,-460.0,0.00021801,4]
[365740170,1749863433208,-460.0,0.00021801,4]
[365740171,1749863433218,-1060.17,0.00021801,4]
[365740172,1749863433227,-460.0,0.00021801,4]
[365740173,1749863433236,-460.0,0.00021801,4]
[365740174,1749863433245,-460.0,0.00021801,4]
[365740175,1749863433254,-460.0,0.00021801,4]
[365740176,1749863433263,-460.0,0.00021801,4]
[365740177,1749863433273,-554.69,0.00021801,4]
[365740178,1749863433283,-319.18,0.00021801,4]
[365740179,1749863433293,-460.0,0.00021801,4]
[365740180,1749863433304,-460.0,0.00021801,4]
[365740181,1749863433314,-440.0,0.00021801,4]
[365740182,1749863433323,-499.39,0.00021801,4]
[365740183,1749863433332,-460.0,0.00021801,4]
[365740184,1749863433343,-460.0,0.00021801,4]
[365740185,1749863433352,-460.0,0.00021801,4]
[365740186,1749863433361,-460.0,0.00021801,4]
[365740187,1749863433371,-625.55,0.00021801,4]
[365740188,1749863433382,-460.0,0.00021801,4]
[365740189,1749863433391,-1545.63,0.00021801,4]
[365740190,1749863433400,-440.0,0.00021801,4]
[365740191,1749863433410,-460.0,0.00021801,4]
[365740192,1749863433419,-440.0,0.00021802,4]
[365740193,1749863433428,-420.0,0.00021802,4]
[365740194,1749863433438,-182.958,0.00021802,2]
[365740195,1749863433447,-460.0,0.00021802,4]
[365740196,1749863433456,-440.0,0.00021802,4]
[365740197,1749863433465,-440.0,0.00021802,4]
[365740198,1749863433474,-440.0,0.00021802,4]
[365740199,1749863433483,-420.0,0.00021802,4]
[365740200,1749863433493,-420.0,0.00021802,4]
[365740201,1749863433502,-460.0,0.00021802,4]
[365740202,1749863433511,-460.0,0.00021802,4]
[365740203,1749863433519,-420.0,0.00021802,4]
[365740204,1749863433529,-440.0,0.00021802,4]
[365740205,1749863433538,-460.0,0.00021802,4]
[365740206,1749863433547,-440.0,0.00021802,4]
[365740207,1749863433557,-440.0,0.00021802,4]
[365740208,1749863433566,-460.0,0.00021802,4]
[365740209,1749863433577,-420.0,0.00021802,2]
[365740210,1749863433587,-440.0,0.00021802,4]
[365740211,1749863433598,-420.0,0.00021802,4]
[365740212,1749863433607,-460.0,0.00021802,4]
[365740213,1749863433617,-460.0,0.00021802,4]
[365740214,1749863433627,-426.72618893,0.00021802,4]
[365740215,1749863433637,-440.0,0.00021802,4]
[365740216,1749863433651,-440.0,0.00021802,4]
[365740217,1749863433660,-440.0,0.00021802,4]
[365740218,1749863433673,-462.41655475,0.00021802,4]
[365740219,1749863433682,-460.0,0.00021802,4]
[365740220,1749863433692,-420.0,0.00021802,4]
[365740221,1749863433702,-440.0,0.00021802,4]
[365740222,1749863433711,-460.0,0.00021802,4]
[365740223,1749863433721,-332.62714514,0.00021802,4]
[365740224,1749863433730,-460.0,0.00021802,4]
[365740225,1749863433739,-608.98413522,0.00021802,4]
[365740226,1749863433749,-440.0,0.00021802,4]
[365740227,1749863433758,-440.0,0.00021802,4]
[365740228,1749863433768,-440.0,0.00021802,4]
[365740229,1749863433781,-422.17399587,0.00021802,4]
[365740230,1749863433791,-460.0,0.00021802,4]
[365740231,1749863433802,-440.0,0.00021802,4]
[365740232,1749863433819,-410.0,0.00021802,4]
[365740233,1749863433831,-440.0,0.00021802,4]
[365740234,1749863433842,-420.0,0.00021802,4]
[365740235,1749863433860,-440.0,0.00021802,4]
[365740236,1749863433872,-440.0,0.00021802,4]
[365740237,1749863433882,-509.34998201,0.00021802,4]
[365740238,1749863433892,-460.0,0.00021802,4]
[365740239,1749863433903,-595.55288919,0.00021802,4]
[365740240,1749863433914,-440.0,0.00021802,4]
[365740241,1749863433923,-460.0,0.00021802,4]
[365740242,1749863433933,-440.0,0.00021802,4]
[365740243,1749863433943,-460.0,0.00021802,4]
[365740244,1749863433953,-440.0,0.00021802,4]
[365740245,1749863433962,-440.0,0.00021802,4]
[365740246,1749863433971,-460.0,0.00021802,4]
[365740247,1749863433980,-440.0,0.00021802,4]
[365740248,1749863433990,-390.0,0.00021802,4]
[365740249,1749863433999,-430.0,0.00021802,4]
[365740250,1749863434009,-460.0,0.00021802,4]
[365740251,1749863434019,-447.50750268,0.00021802,4]
[365740252,1749863434028,-403.40766333,0.00021802,4]
[365740253,1749863434038,-440.0,0.00021802,4]
[365740254,1749863434047,-349.9037,0.00021802,4]
[365740255,1749863434057,-440.0,0.00021802,4]
[365740256,1749863434066,-440.0,0.00021802,4]
[365740257,1749863434075,-440.0,0.00021802,4]
[365740258,1749863434085,-440.0,0.00021802,4]
[365740259,1749863434095,-440.0,0.00021802,4]
[365740260,1749863434105,-379.15900595,0.00021802,4]
[365740261,1749863434115,-440.0,0.00021802,4]
[365740262,1749863434125,-440.0,0.00021802,4]
[365740263,1749863434134,-440.0,0.00021802,4]
[365740264,1749863434143,-419.61018142,0.00021802,4]
[365740265,1749863434153,-430.0,0.00021802,2]
[365740266,1749863434162,-411.31898292,0.00021802,4]
[365740267,1749863434172,-420.0,0.00021802,4]
[365740268,1749863434182,-440.0,0.00021802,4]
[365740269,1749863434191,-392.43320601,0.00021802,2]
[365740270,1749863434201,-440.0,0.00021802,4]
[365740271,1749863434210,-440.0,0.00021802,4]
[365740272,1749863434220,-440.0,0.00021802,4]
[365740273,1749863434229,-460.0,0.00021802,4]
[365740274,1749863434240,-460.0,0.00021802,4]
[365740275,1749863434250,-447.55,0.00021802,4]
[365740276,1749863434260,-440.0,0.00021802,4]
[365740277,1749863434270,-421.6133537,0.00021802,4]
[365740278,1749863434279,-460.0,0.00021802,4]
[365740279,1749863434290,-460.0,0.00021802,4]
[365740280,1749863434301,-436.5062253,0.00021802,4]
[365740281,1749863434311,-440.0,0.00021802,4]
[365740282,1749863434320,-543.05,0.00021802,4]
[365740283,1749863434330,-440.0,0.00021802,4]
[365740284,1749863434340,-485.48,0.00021802,4]
[365740285,1749863434351,-487.81373247,0.00021802,4]
[365740286,1749863434361,-440.0,0.00021802,4]
[365740287,1749863434373,-460.0,0.00021802,4]
[365740288,1749863434384,-440.0,0.00021802,4]
[365740289,1749863434395,-460.0,0.00021802,4]
[365740290,1749863434405,-460.0,0.00021802,4]
[365740291,1749863434416,-460.0,0.00021802,4]
[365740292,1749863434426,-440.0,0.00021802,4]
[365740293,1749863434436,-420.0,0.00021802,4]
[365740294,1749863434446,-440.0,0.00021802,4]
[365740295,1749863434456,-536.1101045,0.00021802,4]
[365740296,1749863434466,-440.0,0.00021802,4]
[365740297,1749863434476,-460.0,0.00021802,4]
[365740298,1749863434486,-460.0,0.00021802,4]
[365740299,1749863434496,-440.0,0.00021802,4]
[365740300,1749863434505,-326.08133367,0.00021802,4]
[365740301,1749863434515,-366.64023349,0.00021802,4]
[365740302,1749863434525,-460.0,0.00021802,4]
[365740303,1749863434535,-460.0,0.00021802,4]
[365740304,1749863434545,-392.84509774,0.00021802,4]
[365740305,1749863434555,-460.0,0.00021802,4]
[365740306,1749863434564,-460.0,0.00021802,4]
[365740307,1749863434574,-460.0,0.00021802,4]
[365740308,1749863434583,-227.21015851,0.00021802,4]
[365740309,1749863434592,-460.0,0.00021802,4]
[365740310,1749863434601,-440.0,0.00021802,4]
[365740311,1749863434611,-460.0,0.00021802,4]
[365740312,1749863434619,-460.0,0.00021802,4]
[365740313,1749863434631,-420.0,0.00021802,4]
[365740314,1749863434640,-390.0,0.00021802,4]
[365740315,1749863434649,-460.0,0.00021802,4]
[365740316,1749863434658,-440.0,0.00021802,4]
[365740317,1749863434668,-446.95974058,0.00021802,4]
[365740318,1749863434677,-440.0,0.00021802,4]
[365740319,1749863434686,-333.92684136,0.00021802,4]
[365740320,1749863434696,-342.35299928,0.00021802,4]
[365740321,1749863434705,-460.0,0.00021802,4]
[365740322,1749863434714,-282.72482161,0.00021802,4]
[365740323,1749863434723,-460.0,0.00021802,4]
[365740324,1749863434732,-460.0,0.00021802,2]
[365740325,1749863434742,-460.0,0.00021802,4]
[365740326,1749863434751,-460.0,0.00021802,4]
[365740327,1749863434761,-460.0,0.00021802,4]
[365740328,1749863434770,-460.0,0.00021802,4]
[365740329,1749863434779,-440.0,0.00021802,4]
[365740330,1749863434788,-460.0,0.00021802,4]
[365740331,1749863434798,-413.96152516,0.00021802,4]
[365740332,1749863434807,-425.58312469,0.00021802,4]
[365740333,1749863434817,-460.0,0.00021802,4]
[365740334,1749863434826,-440.0,0.00021802,4]
[365740335,1749863434836,-500.0,0.00021802,4]
[365740336,1749863434845,-500.0,0.00021802,4]
[365740337,1749863434855,-335.90702769,0.00021802,4]
[365740338,1749863434864,-429.70678619,0.00021802,4]
[365740339,1749863434874,-460.0,0.00021802,4]
[365740340,1749863434884,-460.0,0.00021802,4]
[365740341,1749863434893,-460.0,0.00021802,4]
[365740342,1749863434903,-472.09595252,0.00021802,4]
[365740343,1749863434912,-160.41041332,0.00021802,4]
[365740344,1749863434922,-440.0,0.00021802,4]
[365740345,1749863434931,-421.2969658,0.00021802,4]
[365740346,1749863434940,-460.0,0.00021802,4]
[365740347,1749863434949,-460.0,0.00021802,4]
[365740348,1749863434959,-509.50165453,0.00021802,4]
[365740349,1749863434968,-460.0,0.00021802,4]
[365740350,1749863434977,-460.0,0.00021802,4]
[365740351,1749863434987,-460.0,0.00021802,4]
[365740352,1749863434996,-189.16615433,0.00021802,2]
[365740353,1749863435006,-460.0,0.00021802,4]
[365740354,1749863435016,-460.0,0.00021802,4]
[365740355,1749863435025,-460.0,0.00021802,4]
[365740356,1749863435034,-460.0,0.00021802,4]
[365740357,1749863435043,-460.0,0.00021802,4]
[365740358,1749863435053,-427.22391016,0.00021802,4]
[365740359,1749863435062,-460.0,0.00021802,4]
[365740360,1749863435072,-440.0,0.00021802,4]
[365740361,1749863435082,-460.0,0.00021802,4]
[365740362,1749863435091,-460.0,0.00021802,4]
[365740363,1749863435101,-460.0,0.00021802,4]
[365740364,1749863435111,-460.0,0.00021802,4]
[365740365,1749863435120,-420.0,0.00021802,4]
[365740366,1749863435130,-440.0,0.00021802,4]
[365740367,1749863435235,-460.0,0.00021802,4]
[365740368,1749863435245,-460.0,0.00021802,4]
[365740369,1749863435254,-440.0,0.00021802,4]
[365740370,1749863435264,-460.0,0.00021802,4]
[365740371,1749863435273,-460.0,0.00021802,4]
[365740372,1749863435283,-460.0,0.00021802,4]
[365740373,1749863435292,-420.0,0.00021802,4]
[365740374,1749863435305,-440.0,0.00021802,4]
[365740375,1749863435315,-451.29587409,0.00021802,4]
[365740376,1749863435324,-440.0,0.00021802,4]
[365740377,1749863435333,-583.86117326,0.00021802,4]
[365740378,1749863435343,-460.0,0.00021802,4]
[365740379,1749863435352,-460.0,0.00021802,4]
[365740380,1749863435362,-382.027105,0.00021802,4]
[365740381,1749863435371,-440.0,0.00021802,4]
[365740382,1749863435381,-440.0,0.00021802,4]
[365740383,1749863435391,-460.0,0.00021802,4]
[365740384,1749863435400,-410.0,0.00021802,4]
[365740385,1749863435409,-460.0,0.00021802,4]
[365740386,1749863435419,-476.2,0.00021802,4]
[365740387,1749863435428,-440.0,0.00021803,4]
[365740388,1749863435438,-500.0,0.00021803,2]
[365740389,1749863435447,-160.0,0.00021803,2]
[365740390,1749863435456,-500.0,0.00021803,4]
[365740391,1749863435466,-506.56287931,0.00021803,4]
[365740392,1749863435475,-564.52572047,0.00021804,4]
[365740393,1749863435484,-460.0,0.00021804,4]
[365740394,1749863435494,-513.75333659,0.00021804,4]
[365740395,1749863435503,-579.75434011,0.00021804,4]
[365740396,1749863435514,-420.0,0.00021804,4]
[365740397,1749863435525,-460.0,0.00021804,4]
[365740398,1749863435534,-460.0,0.00021804,4]
[365740399,1749863435544,-420.0,0.00021804,4]
[365740400,1749863435553,-460.0,0.00021804,4]
[365740401,1749863435565,-460.0,0.00021804,4]
[365740402,1749863435574,-460.0,0.00021804,4]
[365740403,1749863435584,-310.0,0.00021804,4]
[365740404,1749863435593,-430.0,0.00021804,4]
[365740405,1749863435603,-460.0,0.00021804,4]
[365740406,1749863435612,-440.0,0.00021804,4]
[365740407,1749863435621,-410.0,0.00021804,4]
[365740408,1749863435631,-460.0,0.00021804,4]
[365740409,1749863435639,-582.86084402,0.00021804,4]
[365740410,1749863435649,-420.0,0.00021804,4]
[365740411,1749863435658,-440.0,0.00021804,4]
[365740412,1749863435668,-460.0,0.00021804,4]
[365740413,1749863435677,-460.0,0.00021804,4]
[365740414,1749863435687,-460.0,0.00021804,4]
[365740415,1749863435696,-460.0,0.00021804,4]
[365740416,1749863435705,-410.0,0.00021804,4]
[365740417,1749863435715,-460.0,0.00021804,4]
[365740418,1749863435724,-440.0,0.00021804,4]
[365740419,1749863435734,-414.46421793,0.00021804,4]
[365740420,1749863435743,-440.0,0.00021804,4]
[365740421,1749863435752,-460.0,0.00021804,4]
[365740422,1749863435762,-430.0,0.00021804,4]
[365740423,1749863435772,-460.0,0.00021804,4]
[365740424,1749863435781,-460.0,0.00021804,4]
[365740425,1749863435791,-460.0,0.00021804,4]
[365740426,1749863435800,-400.0,0.00021804,4]
[365740427,1749863435810,-460.0,0.00021804,4]
[365740428,1749863435819,-416.33006213,0.00021804,4]
[365740429,1749863435828,-460.0,0.00021804,4]
[365740430,1749863435837,-425.85643897,0.00021804,4]
[365740431,1749863435846,-420.0,0.00021804,4]
[365740432,1749863435855,-364.37341897,0.00021804,4]
[365740433,1749863435865,-447.97659099,0.00021804,4]
[365740434,1749863435875,-460.0,0.00021804,4]
[365740435,1749863435884,-460.0,0.00021804,4]
[365740436,1749863435894,-460.0,0.00021804,4]
[365740437,1749863435903,-423.70980898,0.00021804,4]
[365740438,1749863435912,-607.30718596,0.00021804,4]
[365740439,1749863435923,-420.0,0.00021804,4]
[365740440,1749863435936,-460.0,0.00021804,4]
[365740441,1749863435947,-410.0,0.00021804,4]
[365740442,1749863435956,-420.0,0.00021804,4]
[365740443,1749863435965,-500.0,0.00021804,4]
[365740444,1749863435974,-1701.88,0.00021812,2]
[365740445,1749863435983,-500.0,0.00021873,2]
[365740446,1749863435992,-500.0,0.00021873,2]
[365740447,1749863436002,-500.0,0.00021873,2]
[365740448,1749863436011,-500.0,0.00021873,2]
[365740449,1749863436020,-500.0,0.00021873,2]
[365740450,1749863436030,-638.20879264,0.00021873,2]
[365740451,1749863436039,-500.0,0.00021873,2]
[365740452,1749863436047,-500.0,0.00021873,2]
[365740453,1749863436056,-500.0,0.00021873,2]
[365740454,1749863436066,-500.0,0.00021873,2]
[365740455,1749863436075,-500.0,0.00021873,2]